bitfinex/quotes_SOLUSD_20241001
["timestamp","ask_amount","ask_price","bid_price","bid_amount"]
[1727822182699,6.8667,145.63,145.59,6.8685]
[1727822183115,15.142,145.65,145.57,24.0423]
[1727822183317,15.142,145.65,145.54,17.1767]
[1727822183611,6.8691,145.58,145.54,17.1767]
[1727822183807,26.18846307,145.64,145.53,6.871]
[1727822183808,6.8695,145.57,145.53,6.871]
[1727822184187,15.142,145.59,145.52,23.776884]
[1727822184400,15.142,145.59,145.55,6.8701]
[1727822184915,22.0106,145.59,145.55,6.8701]
[1727822185221,15.142,145.59,145.54,6.8708]
[1727822185400,20.0,145.58,145.53,17.1781]
[1727822185607,6.8699,145.57,145.53,17.1781]
[1727822185902,20.0,145.58,145.5,17.1815]
[1727822185903,6.8704,145.55,145.5,17.1815]
[1727822186226,6.8704,145.55,145.47,54.19969298]
[1727822186227,20.0,145.58,145.47,17.185]
[1727822186520,6.8719,145.52,145.47,24.0587]
[1727822186838,6.8715,145.53,145.48,6.8736]
[1727822187728,6.871,145.54,145.49,6.8732]
[1727822188729,20.0,145.56,145.49,6.8732]
[1727822189031,6.8724,145.51,145.47,17.185]
[1727822189431,6.8724,145.51,145.47,24.0591]
[1727822190919,20.0,145.52,145.47,24.0591]
[1727822191126,26.872,145.52,145.47,24.0591]
[1727822193805,20.0,145.52,145.48,6.8734]
[1727822194025,22.4271,145.53,145.48,1.37464197]
[1727822194427,15.5557,145.53,145.49,1.37445551]
[1727822194727,15.5557,145.53,145.51,6.8722]
[1727822195133,22.4272,145.53,145.49,6.8732]
[1727822195435,15.5557,145.53,145.5,6.8727]
[1727822196018,15.5557,145.53,145.49,8.24761631]
[1727822196243,15.5557,145.53,145.49,6.8732]
[1727822198130,15.5557,145.53,145.5,6.8728]
[1727822199027,15.5557,145.53,145.49,6.8731]
[1727822199831,15.5557,145.53,145.5,6.8728]
[1727822200847,15.5557,145.53,145.48,17.1839]
[1727822201059,6.8724,145.51,145.47,6.8741]
[1727822201353,20.0,145.52,145.46,6.8747]
[1727822201656,20.0,145.52,145.45,17.1875]
[1727822201657,6.8731,145.5,145.45,24.0626]
[1727822201857,6.8733,145.49,145.45,24.0626]
[1727822202229,26.0565,145.52,145.45,24.0626]
[1727822202552,6.8729,145.5,145.45,24.0626]
[1727822202943,26.0565,145.52,145.45,17.1875]
[1727822203179,20.0,145.5,145.47,6.8742]
[1727822205043,6.8724,145.51,145.47,6.8742]
[1727822205347,20.0,145.51,145.45,17.1875]
[1727822205550,6.0565,145.52,145.48,24.0578]
[1727822206038,12.9286,145.52,145.48,24.0578]
[1727822206240,6.0565,145.52,145.48,24.0578]
[1727822206744,12.9285,145.52,145.48,24.0578]
[1727822207447,12.9285,145.52,145.48,17.1844]
[1727822208031,26.8725,145.51,145.48,17.1844]
[1727822208450,26.8725,145.51,145.47,6.8741]
[1727822209348,6.8725,145.51,145.47,6.8741]
[1727822209652,20.0,145.51,145.47,6.8741]
[1727822211230,20.0,145.51,145.48,6.8737]
[1727822213355,26.8727,145.51,145.46,6.8746]
[1727822213735,26.8727,145.51,145.47,6.8741]
[1727822214633,7.18160741,145.56,145.47,22.0268]
[1727822214839,17.1754,145.56,145.47,17.1849]
[1727822215048,6.8724,145.51,145.47,17.1849]
[1727822215640,6.8714,145.53,145.48,6.8736]
[1727822215852,6.872,145.52,145.48,6.8736]
[1727822216349,6.8715,145.53,145.49,6.8731]
[1727822221556,22.0536,145.55,145.49,6.8731]
[1727822221760,22.0536,145.55,145.52,6.8716]
[1727822221761,15.5533,145.55,145.52,6.8716]
[1727822221937,6.8701,145.56,145.52,6.8716]
[1727822222347,6.8704,145.55,145.51,24.0526]
[1727822222546,17.1744,145.57,145.45,19.82949298]
[1727822222743,6.8723,145.51,145.47,6.8742]
[1727822224159,26.872,145.52,145.47,6.8742]
[1727822224331,20.0,145.52,145.45,29.9165794]
[1727822224538,6.8738,145.48,145.39,22.0268]
[1727822224760,26.5003,145.52,145.42,17.1911]
[1727822224959,6.8734,145.49,145.44,6.8753]
[1727822225137,26.5003,145.52,145.45,12.7292794]
[1727822225336,33.3725,145.52,145.47,6.8741]
[1727822225551,6.8724,145.51,145.46,24.0607]
[1727822225760,6.8729,145.5,145.46,24.0607]
[1727822226947,26.5003,145.52,145.46,17.1861]
[1727822227151,6.8738,145.48,145.43,24.0656]
[1727822227662,6.8743,145.47,145.43,24.0656]
[1727822228045,6.8743,145.47,145.43,17.1898]
[1727822229365,6.8748,145.46,145.42,6.8765]
[1727822229967,6.8743,145.47,145.43,6.876]
[1727822230136,20.0,145.5,145.43,6.876]
[1727822230339,6.8738,145.48,145.43,6.876]
[1727822232657,26.5003,145.52,145.45,6.8751]
[1727822232953,20.0,145.5,145.46,6.8743]
[1727822233743,6.8735,145.49,145.44,24.064]
[1727822234545,6.8735,145.49,145.45,6.8751]
[1727822234867,6.8728,145.5,145.46,6.8746]
[1727822235449,6.8724,145.51,145.47,6.874]
[1727822235652,20.0,145.52,145.47,1.3747117]
[1727822235856,20.0,145.52,145.45,19.89073695]
[1727822236057,20.0,145.52,145.43,19.89073695]
[1727822236058,6.8726,145.51,145.43,19.89073695]
[1727822236252,6.8726,145.51,145.46,6.8743]
[1727822236769,6.8726,145.51,145.47,6.8742]
[1727822236981,26.872,145.52,145.48,6.8737]
[1727822237473,15.5533,145.53,145.5,6.8727]
[1727822237647,13.53341204,145.56,145.51,6.8723]
[1727822237851,6.87,145.56,145.52,6.8717]
[1727822238658,22.4605,145.57,145.52,6.8717]
[1727822239054,6.8701,145.56,145.52,6.8717]
[1727822239869,15.5909,145.57,145.52,1.37421298]
[1727822240073,15.5909,145.57,145.53,6.871]
[1727822240684,15.5909,145.57,145.54,8.2450338]
[1727822240976,6.8682,145.6,145.55,6.87]
[1727822241550,15.5909,145.61,145.56,1.37393716]
[1727822241551,22.4586,145.61,145.56,1.37393716]
[1727822241854,22.4586,145.61,145.56,6.8699]
[1727822242276,22.4586,145.61,145.57,1.37377831]
[1727822242487,22.4586,145.61,145.57,6.8694]
[1727822243757,15.5909,145.61,145.58,6.8689]
[1727822243962,6.867,145.63,145.58,6.8689]
[1727822244171,6.867,145.63,145.58,8.24257345]
[1727822245863,6.867,145.63,145.58,8.24253154]
[1727822246055,6.867,145.63,145.58,6.8689]
[1727822246267,6.867,145.63,145.58,8.24253599]
[1727822246771,6.8663,145.64,145.6,6.868]
[1727822246977,20.0,145.65,145.61,6.8672]
[1727822247171,20.0,145.65,145.6,17.1702]
[1727822247483,20.0,145.65,145.6,24.0382]
[1727822247654,26.8658,145.65,145.61,6.8675]
[1727822247858,6.8666,145.64,145.6,17.1702]
[1727822248057,6.8677,145.61,145.57,17.1732]
[1727822248269,20.0,145.65,145.54,17.1768]
[1727822248270,6.8687,145.59,145.54,17.1768]
[1727822248560,6.869,145.58,145.54,24.0476]
[1727822248980,6.8699,145.57,145.52,6.8717]
[1727822249280,15.8133,145.6,145.51,17.1805]
[1727822249281,20.0,145.59,145.51,17.1805]
[1727822249653,6.87,145.56,145.51,17.1805]
[1727822249852,20.0,145.59,145.51,17.1805]
[1727822250056,20.0,145.57,145.53,6.8712]
[1727822250265,6.8686,145.59,145.54,6.8708]
[1727822254880,20.0,145.59,145.55,6.8702]
[1727822255177,6.8673,145.62,145.57,6.8694]
[1727822255378,6.8673,145.62,145.58,17.1721]
[1727822256178,20.0,145.61,145.58,17.1721]
[1727822256377,20.0,145.63,145.58,25.41437746]
[1727822256583,22.68,145.64,145.59,6.8684]
[1727822256775,6.8658,145.65,145.6,8.24121366]
[1727822257264,6.8658,145.65,145.6,6.8677]
[1727822258971,6.8658,145.65,145.61,1.37338547]
[1727822260492,6.8658,145.65,145.6,6.8677]
[1727822260973,6.8658,145.65,145.61,1.3733794]
[1727822261295,6.8654,145.66,145.62,6.8671]
[1727822261469,22.97682739,145.68,145.63,8.23970762]
[1727822261470,6.8649,145.67,145.63,8.23970762]
[1727822261663,22.97682739,145.68,145.62,17.1674]
[1727822261664,6.8656,145.66,145.62,17.1674]
[1727822262297,6.8656,145.66,145.62,18.54062974]
[1727822265184,20.0,145.67,145.58,20.0]
[1727822265401,6.8661,145.65,145.6,6.8677]
[1727822265692,6.8661,145.65,145.61,6.8675]
[1727822266083,6.8663,145.64,145.59,36.74411567]
[1727822266283,6.8663,145.64,145.59,29.87591567]
[1727822266602,6.8667,145.63,145.59,36.74401567]
[1727822267286,20.0,145.66,145.57,12.70481567]
[1727822267595,20.0,145.66,145.57,6.8693]
[1727822267596,6.8676,145.61,145.57,6.8693]
[1727822267797,6.8672,145.62,145.57,6.8693]
[1727822269705,6.8667,145.63,145.58,6.869]
[1727822270788,6.8672,145.62,145.58,6.869]
[1727822272382,6.8663,145.64,145.59,1.37359837]
[1727822272586,14.02922855,145.67,145.63,6.8665]
[1727822272883,6.8648,145.67,145.63,6.8665]
[1727822273605,6.8648,145.67,145.63,8.23968386]
[1727822274187,6.8648,145.67,145.62,17.1674]
[1727822274401,20.0,145.67,145.62,17.1674]
[1727822274702,6.8663,145.64,145.6,6.868]
[1727822274892,6.8659,145.65,145.61,6.8676]
[1727822276905,6.8659,145.65,145.6,6.868]
[1727822277993,6.8659,145.65,145.59,17.1708]
[1727822278229,6.8659,145.65,145.61,6.8676]
[1727822279320,6.8659,145.65,145.6,6.868]
[1727822279484,20.0,145.67,145.6,6.868]
[1727822279683,6.8663,145.64,145.6,6.868]
[1727822281812,6.8663,145.64,145.59,17.1708]
[1727822282110,6.8663,145.64,145.59,24.0392]
[1727822283098,6.8663,145.64,145.6,6.868]
[1727822288013,20.0,145.67,145.61,6.8673]
[1727822288223,6.8656,145.66,145.62,8.24033383]
[1727822288396,6.8657,145.65,145.61,24.0364]
[1727822288594,6.8657,145.65,145.61,17.1688]
[1727822289100,6.8657,145.65,145.61,24.0363]
[1727822289410,6.8654,145.66,145.62,6.867]
[1727822289607,6.8654,145.66,145.61,36.7381926]
[1727822290113,20.0,145.67,145.61,36.7381926]
[1727822290114,6.866,145.65,145.61,36.7381926]
[1727822290327,6.866,145.65,145.61,24.0363]
[1727822290605,6.866,145.65,145.61,25.40956755]
[1727822290808,6.866,145.65,145.61,24.0363]
[1727822291895,6.866,145.65,145.61,25.40956912]
[1727822292206,6.866,145.65,145.61,24.0363]
[1727822293202,6.866,145.65,145.62,1.37326823]
[1727822293593,6.866,145.65,145.61,24.0363]
[1727822294718,7.16275916,145.7,145.63,17.1663]
[1727822294904,6.8635,145.7,145.65,6.8654]
[1727822295095,6.8635,145.7,145.65,8.23833794]
[1727822295313,34.32513347,145.72,145.64,19.5679926]
[1727822295518,6.8651,145.67,145.63,24.0329]
[1727822296503,6.8644,145.68,145.64,6.8661]
[1727822297324,6.8644,145.68,145.64,19.5679926]
[1727822298899,15.9726,145.72,145.62,28.4607926]
[1727822299100,6.8656,145.66,145.61,13.103]
[1727822299918,20.0,145.7,145.61,6.2358]
[1727822300108,6.8663,145.64,145.6,24.0374]
[1727822301629,20.0,145.65,145.57,6.2358]
[1727822301823,6.8682,145.6,145.57,6.2358]
[1727822304120,6.8682,145.6,145.56,6.8699]
[1727822304327,6.8682,145.6,145.55,15.7589]
[1727822304832,6.8682,145.6,145.55,22.6292]
[1727822305629,6.8687,145.59,145.55,22.6292]
[1727822305834,22.4466,145.64,145.53,6.2358]
[1727822306033,6.87,145.56,145.51,39.8116]
[1727822306332,26.8686,145.59,145.54,6.8708]
[1727822306530,6.8682,145.6,145.55,6.8704]
[1727822306830,26.8686,145.59,145.55,6.8704]
[1727822308631,6.8691,145.58,145.53,24.0492]
[1727822308823,6.8696,145.57,145.53,24.0492]
[1727822309007,20.0,145.62,145.52,6.8718]
[1727822309212,6.8701,145.56,145.52,6.8719]
[1727822309825,6.8705,145.55,145.51,22.6311]
[1727822311114,6.8705,145.55,145.51,6.8722]
[1727822312218,20.0,145.57,145.49,6.8732]
[1727822312518,6.8715,145.53,145.49,6.8732]
[1727822313911,6.871,145.54,145.49,6.8732]
[1727822317337,43.776884,145.57,145.47,32.9894]
[1727822317539,6.8728,145.51,145.47,17.1851]
[1727822317720,6.873,145.5,145.46,6.3516]
[1727822318049,6.8724,145.51,145.47,6.8741]
[1727822318214,6.8715,145.53,145.48,6.8737]
[1727822319942,6.872,145.52,145.48,6.8737]
[1727822322339,6.872,145.52,145.47,6.8741]
[1727822323141,62.14764466,145.57,145.48,6.8737]
[1727822323345,6.8714,145.53,145.48,6.8737]
[1727822325744,60.950984,145.57,145.46,23.5377]
[1727822326041,6.8728,145.5,145.46,30.4123]
[1727822326427,6.8725,145.51,145.46,30.4123]
[1727822329843,6.8732,145.5,145.46,17.1861]
[1727822330045,6.8733,145.49,145.45,6.8751]
[1727822331147,6.8733,145.49,145.44,19.60196604]
[1727822331450,6.8733,145.49,145.44,6.8756]
[1727822331861,20.0,145.51,145.46,6.8746]
[1727822332149,6.8729,145.5,145.45,24.0627]
[1727822332543,20.0,145.51,145.45,24.0627]
[1727822332747,6.8733,145.49,145.45,24.0627]
[1727822333653,15.4083,145.52,145.43,50.1839]
[1727822333654,20.0,145.55,145.47,17.1852]
[1727822333953,6.8718,145.53,145.48,6.8734]
[1727822334155,20.0,145.52,145.48,6.8734]
[1727822334338,20.0,145.52,145.47,17.1852]
[1727822334529,26.8722,145.52,145.47,24.0593]
[1727822336056,26.8722,145.52,145.48,6.8737]
[1727822336634,26.8722,145.52,145.47,24.0593]
[1727822337952,6.8715,145.53,145.49,6.8731]
[1727822338164,6.8711,145.54,145.5,6.8727]
[1727822338340,6.8716,145.53,145.49,6.8732]
[1727822341841,37.1765,145.55,145.47,24.0593]
[1727822342147,6.8738,145.48,145.44,17.1884]
[1727822342454,6.8746,145.47,145.42,13.1008]
[1727822342635,6.8742,145.48,145.44,6.8756]
[1727822342831,26.8734,145.49,145.45,24.0625]
[1727822343041,26.8734,145.49,145.45,17.1874]
[1727822343336,6.8743,145.47,145.43,6.8756]
[1727822343641,20.0,145.49,145.42,36.14146604]
[1727822343839,6.8748,145.46,145.42,36.14146604]
[1727822344052,6.8748,145.46,145.42,43.01796604]
[1727822344359,6.8743,145.47,145.42,30.2916]
[1727822345560,6.8748,145.46,145.42,30.2916]
[1727822345853,6.8743,145.47,145.42,30.2916]
[1727822346156,6.8752,145.45,145.4,6.8772]
[1727822346462,26.5192,145.47,145.38,6.2243]
[1727822346675,20.0,145.39,145.34,6.2243]
[1727822347138,26.8783,145.39,145.34,6.2243]
[1727822347547,26.8783,145.39,145.34,18.95066604]
[1727822347760,32.5984,145.44,145.35,6.8797]
[1727822347966,32.5984,145.44,145.34,43.03116604]
[1727822348138,20.0,145.38,145.34,23.4245]
[1727822348347,26.8785,145.38,145.32,0.3241637]
[1727822349064,59.185184,145.38,145.32,0.3241637]
[1727822349255,59.185184,145.38,145.23,7.0456416]
[1727822349256,6.8828,145.29,145.23,7.0456416]
[1727822349454,6.8842,145.26,145.23,0.8213416]
[1727822349656,20.0,145.3,145.23,0.8213416]
[1727822349657,6.8847,145.25,145.23,0.8213416]
[1727822350259,6.8871,145.2,145.13,6.8902]
[1727822350464,6.8875,145.19,145.13,6.8902]
[1727822350664,6.8873,145.2,145.12,6.8907]
[1727822350868,6.8854,145.24,145.14,17.2241]
[1727822351161,57.0499671,145.31,145.09,50.9375]
[1727822351162,20.0,145.23,145.09,16.4767]
[1727822351371,6.888,145.18,145.11,6.8912]
[1727822351865,6.889,145.16,145.1,17.2289]
[1727822352070,56.401184,145.22,145.08,1.0405405]
[1727822352071,6.8901,145.14,145.08,1.0405405]
[1727822352261,23.776884,145.17,145.08,1.0405405]
[1727822352559,6.891,145.12,145.08,1.0405405]
[1727822352759,20.0,145.13,145.08,1.0405405]
[1727822352960,7.15915729,145.16,145.08,1.0405405]
[1727822353156,43.776884,145.15,145.08,1.0405405]
[1727822353469,20.0,145.15,145.09,17.2303]
[1727822353773,20.0,145.19,145.09,17.2303]
[1727822353939,7.15542503,145.2,145.13,6.8902]
[1727822354142,6.8869,145.21,145.14,6.8897]
[1727822355161,6.8871,145.2,145.13,6.89]
[1727822355370,6.8866,145.21,145.15,6.8893]
[1727822355738,6.8872,145.2,145.12,17.2263]
[1727822356163,6.8866,145.21,145.12,17.2263]
[1727822356353,7.15431069,145.22,145.13,6.8899]
[1727822356564,7.15431069,145.22,145.12,17.2263]
[1727822357146,14.04061069,145.22,145.16,6.8887]
[1727822357348,6.8863,145.22,145.16,6.8887]
[1727822357545,6.8876,145.19,145.13,6.8902]
[1727822357772,26.8869,145.21,145.11,31.98469408]
[1727822357962,6.8871,145.2,145.14,17.2245]
[1727822358151,20.0,145.25,145.11,31.98469408]
[1727822358356,6.8879,145.19,145.12,6.8907]
[1727822358569,6.887,145.2,145.14,6.8897]
[1727822358871,20.0,145.19,145.14,6.8897]
[1727822359664,7.15545227,145.26,145.13,17.2253]
[1727822359972,7.15545227,145.26,145.11,31.98469408]
[1727822359973,20.0,145.22,145.17,6.8881]
[1727822360265,26.8861,145.22,145.17,6.8881]
[1727822360469,26.8861,145.22,145.16,17.2219]
[1727822360642,6.8857,145.23,145.17,6.8884]
[1727822361152,6.8867,145.21,145.16,17.2219]
[1727822361355,6.8884,145.18,145.11,24.1181]
[1727822361552,6.8894,145.15,145.11,17.2271]
[1727822361870,6.89,145.14,145.08,1.0405405]
[1727822362070,43.776884,145.17,145.08,1.0405405]
[1727822362566,6.8914,145.11,145.08,1.0405405]
[1727822362951,43.776884,145.17,145.08,1.0405405]
[1727822363146,6.8918,145.1,145.08,1.0405405]
[1727822363350,6.8913,145.11,145.08,1.0405405]
[1727822363872,6.8904,145.13,145.08,1.0405405]
[1727822364253,6.8919,145.1,145.08,1.0405405]
[1727822364549,6.8913,145.11,145.08,1.0405405]
[1727822365576,6.8903,145.13,145.08,1.0405405]
[1727822366459,6.8899,145.14,145.08,7.9329405]
[1727822366972,6.8893,145.16,145.1,6.8917]
[1727822367157,6.8896,145.15,145.09,6.8922]
[1727822367467,17.22,145.18,145.09,6.8922]
[1727822367669,6.89,145.14,145.09,6.8922]
[1727822368681,6.89,145.14,145.08,1.0405405]
[1727822368682,6.8905,145.13,145.08,7.9332405]
[1727822368861,6.8909,145.12,145.08,1.0405405]
[1727822369382,6.8914,145.11,145.08,1.0405405]
[1727822369552,43.776884,145.17,145.08,1.0405405]
[1727822369879,6.8909,145.12,145.08,1.0405405]
[1727822370169,20.0,145.16,145.08,1.0405405]
[1727822370474,23.776884,145.17,145.08,1.0405405]
[1727822370475,17.224,145.15,145.08,1.0405405]
[1727822370644,20.0,145.14,145.08,1.0405405]
[1727822370848,17.224,145.15,145.08,1.0405405]
[1727822370849,20.0,145.1,145.08,1.0405405]
[1727822371051,17.224,145.15,145.08,1.0405405]
[1727822371280,6.8922,145.09,145.08,1.0405405]
[1727822371569,20.0,145.14,145.08,1.0405405]
[1727822371774,6.8908,145.13,145.08,1.0405405]
[1727822371949,6.8913,145.11,145.08,1.0405405]
[1727822372359,6.8909,145.12,145.08,1.0405405]
[1727822373764,20.0,145.16,145.08,1.0405405]
[1727822373963,6.8904,145.13,145.08,7.9331405]
[1727822374163,6.8909,145.12,145.08,1.0405405]
[1727822374475,6.8914,145.11,145.08,1.0405405]
[1727822374977,37.2232,145.16,145.08,1.0405405]
[1727822375163,20.0,145.17,145.08,1.0405405]
[1727822375475,6.8909,145.12,145.08,1.0405405]
[1727822375675,6.8906,145.13,145.08,7.9330405]
[1727822375975,6.8903,145.13,145.08,7.9332405]
[1727822377268,20.0,145.13,145.08,1.0405405]
[1727822377583,6.8909,145.12,145.08,1.0405405]
[1727822377880,20.0,145.13,145.08,1.0405405]
[1727822378982,6.8917,145.11,145.08,1.0405405]
[1727822379880,6.8918,145.1,145.08,1.0405405]
[1727822380062,6.8922,145.09,145.08,1.0405405]
[1727822380268,20.0,145.13,145.08,1.0405405]
[1727822380470,6.8918,145.1,145.08,1.0405405]
[1727822380777,6.8922,145.09,145.08,1.0405405]
[1727822381559,6.8918,145.1,145.08,1.0405405]
[1727822381770,6.8913,145.11,145.08,1.0405405]
[1727822382166,6.8919,145.1,145.08,1.0405405]
[1727822382659,6.8913,145.11,145.08,1.0405405]
[1727822383183,6.8909,145.12,145.08,1.0405405]
[1727822384284,6.8905,145.13,145.08,7.9330405]
[1727822384664,6.8918,145.1,145.08,1.0405405]
[1727822384860,6.8922,145.09,145.08,1.0405405]
[1727822385389,26.8922,145.09,145.08,1.0405405]
[1727822385761,50.669084,145.09,145.08,4.05e-05]
[1727822386659,6.8946,145.04,145.03,0.322014]
[1727822387363,26.8946,145.04,145.03,0.322014]
[1727822387766,6.8946,145.04,145.03,0.322014]
[1727822388489,6.8942,145.05,145.03,0.322014]
[1727822389090,6.8946,145.04,145.03,0.322014]
[1727822391183,6.8946,145.04,145.03,1.4e-05]
[1727822391184,50.671484,145.04,145.03,1.4e-05]
[1727822392279,6.8989,144.95,144.94,0.8213416]
[1727822395086,26.8989,144.95,144.94,4.16e-05]
[1727822396386,50.675784,144.95,144.94,4.16e-05]
[1727822396593,26.8989,144.95,144.94,4.16e-05]
[1727822396970,50.675784,144.95,144.94,4.16e-05]
[1727822397290,26.8989,144.95,144.94,4.16e-05]
[1727822397678,43.776884,144.94,144.83,6.1723]
[1727822397869,6.9039,144.85,144.83,6.1723]
[1727822398272,17.2564,144.88,144.8,15.569]
[1727822398487,6.9056,144.81,144.8,15.569]
[1727822398986,6.906,144.8,144.79,7.2128405]
[1727822399188,6.906,144.8,144.79,1.0405405]
[1727822400379,6.9028,144.87,144.79,33.02523458]
[1727822400887,6.9039,144.85,144.8,17.2642]
[1727822401094,7.19527864,144.9,144.79,1.0405405]
[1727822401695,6.9043,144.84,144.79,7.9470405]
[1727822401895,6.9037,144.85,144.79,7.9470405]
[1727822402095,6.9037,144.85,144.8,6.906]
[1727822402303,6.9037,144.85,144.79,7.9469405]
[1727822402598,6.9031,144.87,144.81,23.776884]
[1727822402771,37.2546,144.89,144.81,23.776884]
[1727822402978,17.2546,144.89,144.81,23.776884]
[1727822403173,6.9033,144.86,144.81,30.682384]
[1727822403402,17.2546,144.89,144.81,30.681984]
[1727822403695,6.9027,144.88,144.83,54.45819408]
[1727822403881,29.06774651,144.97,144.84,1.38049646]
[1727822403882,21.5958,144.97,144.84,1.38049646]
[1727822404209,6.9018,144.89,144.84,30.680984]
[1727822404373,17.2473,144.95,144.84,23.776884]
[1727822404582,17.2473,144.95,144.86,31.98469408]
[1727822404797,6.9023,144.88,144.84,23.776884]
[1727822404994,6.9018,144.89,144.85,1.38040021]
[1727822405300,6.9018,144.89,144.86,1.38028184]
[1727822405604,6.9018,144.89,144.84,30.680584]
[1727822406891,6.9018,144.89,144.85,1.38028359]
[1727822407097,6.9018,144.89,144.84,30.680584]
[1727822407479,20.0,144.95,144.84,23.776884]
[1727822407683,6.9032,144.86,144.83,47.55369408]
[1727822407876,6.9028,144.87,144.83,47.55369408]
[1727822408077,6.9027,144.87,144.83,47.55369408]
[1727822408972,6.9032,144.86,144.83,47.55369408]
[1727822409177,6.9032,144.86,144.74,8.03443765]
[1727822409178,6.905,144.83,144.78,6.907]
[1727822409381,26.3145,144.91,144.77,6.1723]
[1727822409382,6.9059,144.81,144.77,6.1723]
[1727822409599,6.906,144.8,144.74,0.322014]
[1727822410881,6.906,144.8,144.74,7.230414]
[1727822411205,6.906,144.8,144.74,0.322014]
[1727822411705,6.906,144.8,144.75,6.9084]
[1727822411994,34.5118,144.88,144.74,0.322014]
[1727822411995,6.9046,144.83,144.77,6.9074]
[1727822412205,20.0,144.87,144.8,6.1723]
[1727822412381,6.9041,144.84,144.8,6.1723]
[1727822412784,15.2813,144.93,144.8,6.1723]
[1727822412991,17.2523,144.91,144.81,6.9054]
[1727822413200,17.2523,144.91,144.8,6.1723]
[1727822413396,6.9043,144.84,144.8,6.1723]
[1727822413983,6.9037,144.85,144.8,6.1723]
[1727822415186,6.9037,144.85,144.8,13.0783]
[1727822415584,6.9032,144.86,144.81,30.681984]
[1727822415985,6.9041,144.85,144.8,23.4366]
[1727822416495,6.9041,144.85,144.8,30.3422]
[1727822416697,6.9022,144.88,144.82,31.98469408]
[1727822417209,6.9022,144.88,144.83,23.776884]
[1727822418200,6.9027,144.87,144.83,30.681384]
[1727822418395,6.9027,144.87,144.83,23.776884]
[1727822419899,7.18683612,144.92,144.83,23.776884]
[1727822420392,6.9037,144.85,144.8,13.0782]
[1727822420600,6.9047,144.83,144.8,6.1723]
[1727822420985,17.2564,144.88,144.8,6.1723]
[1727822420986,6.904,144.85,144.8,6.1723]
[1727822421186,6.9033,144.86,144.81,6.9054]
[1727822421405,20.0,144.9,144.83,6.9046]
[1727822422013,6.9014,144.9,144.85,6.9036]
[1727822422193,7.18683612,144.92,144.84,23.776884]
[1727822422194,6.9023,144.88,144.84,31.98469408]
[1727822422397,17.249,144.94,144.85,23.776884]
[1727822422709,6.9008,144.91,144.86,13.4061]
[1727822422903,1.19984761,144.97,144.85,17.2585]
[1727822423083,6.9016,144.9,144.85,24.162]
[1727822423291,6.9016,144.9,144.86,6.9031]
[1727822423484,6.9016,144.9,144.85,17.2585]
[1727822423689,6.9016,144.9,144.85,24.162]
[1727822424581,20.0,144.94,144.84,31.98469408]
[1727822424786,6.9018,144.89,144.84,38.88849408]
[1727822424989,17.2526,144.91,144.83,6.503]
[1727822425316,6.9037,144.85,144.83,6.503]
[1727822425488,6.9041,144.84,144.83,6.503]
[1727822425894,6.9041,144.84,144.8,6.503]
[1727822426206,6.9052,144.82,144.8,6.503]
[1727822426412,6.9045,144.84,144.8,6.503]
[1727822426588,17.2577,144.87,144.8,6.503]
[1727822426915,6.9047,144.83,144.8,6.503]
[1727822428340,6.9042,144.84,144.8,6.503]
[1727822429391,6.9048,144.83,144.8,6.503]
[1727822430313,6.9055,144.82,144.79,1.0405405]
[1727822430607,6.9057,144.81,144.79,1.0405405]
[1727822430910,17.2577,144.87,144.79,1.0405405]